[Event "Prague Festival-Challengers 2022"]
[Site "Prague"]
[Date "2022.06.17"]
[Round "9.3"]
[White "Warmerdam, Max"]
[Black "Keymer, Vincent"]
[Result "0-1"]
[ECO "D02"]
[WhiteElo "2614"]
[BlackElo "2667"]
[Annotator "TA"]
[PlyCount "132"]
[EventDate "2022.06.07"]
[EventType "tourn"]
[EventCountry "CZE"]
[SourceTitle "playchess.com"]
[Source "ChessBase"]
[SourceQuality "1"]
[TimeControl "40/5400+30:1800+30"]

{[%evp 9,132,16,9,16,10,15,22,-1,10,0,8,5,10,14,17,4,10,4,2,0,0,0,0,4,2,-32,-30,-49,-44,-44,-38,-74,-62,-66,-38,-46,-47,-52,-52,-94,-90,-94,-95,-94,-77,-132,-132,-123,-128,-131,-98,-100,-100,-106,-99,-95,-69,-69,-69,-83,-75,-68,-64,-73,-75,-82,-66,-77,-74,-67,-58,-69,-59,-81,-81,-68,-51,-81,-81,-81,-81,-73,-62,-81,-62,-62,-62,-62,-62,-62,-61,-65,-56,-81,-78,-73,-56,-68,-55,-52,-28,-56,-52,-73,-64,-109,-125,-330,-275,-1958,-1879,-1879,-1615,-1590,-1590,-4594,-477,-29983,-29984,-29984,-29985,-29985,-29986,-29986,-569]} 1. Nf3 {[%emt 0:00:05]} d5 {[%emt 0:00:06]} 2. g3 {[%emt 0:00:04]} Bg4 {[%emt 0:00:51]} 3. Bg2 {[%emt 0:00:06]} c6 {[%emt 0:00:04]} 4. d4 {[%emt 0:00:09]} Nd7 {[%emt 0:02:19]} 5. c4 {[%emt 0:00:08]} e6 {[%emt 0:00:17]} 6. h3 {[%emt 0:00:06] D02: 1 d4 d5 2 Nf3 sidelines, including 2...Nf6 3 g3 and 2...Nf6 3 Bf4.} Bf5 {[%emt 0:05:42]} 7. Nc3 {[%emt 0:00:13] [#]} Ngf6 $146 {[%emt 0:13:18]} ({Predecessor:} 7... h6 8. O-O Ngf6 9. Qb3 Qb6 10. c5 Qa6 11. Re1 b6 12. cxb6 Qxb6 13. Nd2 Qxd4 {½-½ (56) Percivaldi,M (2433)-Andersen,M (2193) Helsingor 2017}) 8. Nh4 {[%emt 0:03:02] The position is equal.} Be4 {[%emt 0:02:58]} 9. Nxe4 {[%emt 0:05:09]} Nxe4 {[%emt 0:06:22]} 10. O-O {[%emt 0:03:58]} Be7 {[%emt 0:02:27]} 11. Nf3 {[%emt 0:07:55]} O-O {[%emt 0:00:44]} 12. Qb3 {[%emt 0:17:03]} Qb6 {[%emt 0:02:26]} 13. Qc2 {[%emt 0:12:35]} a5 {[%emt 0:06:46]} 14. Be3 {[%emt 0:00:49]} f5 {[%emt 0:03:17]} 15. h4 {[%emt 0:05:57]} Qa6 {[%emt 0:05:42]} 16. b3 {[%emt 0:10:29]} Bd6 {[%emt 0:03:44]} 17. Ne1 {[%emt 0:01:20]} b5 {[%emt 0:07:05]} 18. c5 {[%emt 0:07:27]} Bc7 {[%emt 0:02:31]} 19. Nd3 {[%emt 0:00:00]} Rae8 {[%emt 0:01:02]} 20. Qb2 {[%emt 0:02:50]} Qc8 {[%emt 0:02:24]} 21. Rac1 {[%emt 0:01:54]} Qd8 {[%emt 0:04:05]} 22. Ne5 {[%emt 0:03:17]} Nxe5 {[%emt 0:00:18]} 23. dxe5 {[%emt 0:00:02]} b4 {[%emt 0:04:23]} 24. Qd4 {[%emt 0:03:50]} Qb8 {[%emt 0:01:10]} 25. Bf4 {[%emt 0:00:06]} h6 {[%emt 0:01:04]} 26. h5 {[%emt 0:00:24]} Ng5 {[%emt 0:05:37]} 27. Bxg5 {[%emt 0:00:04]} (27. Ra1 $142) 27... Bxe5 $17 {[%emt 0:00:05]} 28. Qe3 {[%emt 0:00:29]} hxg5 {[%emt 0:00:53]} 29. Qxg5 {[%emt 0:00:02]} Qd8 {[%emt 0:01:06]} 30. Qxd8 {[%emt 0:02:30]} Rxd8 {[%emt 0:00:04]} 31. Bh3 {[%emt 0:01:38]} Kf7 {[%emt 0:03:14]} 32. Kg2 {[%emt 0:01:39]} g5 {[%emt 0:03:23] [#] White must now prevent ...g4.} 33. hxg6+ $1 {[%emt 0:00:04]} Kxg6 {[%emt 0:00:03]} 34. e3 {[%emt 0:01:07]} a4 {[%emt 0:01:05]} 35. f4 {[%emt 0:01:52]} Bc3 {[%emt 0:00:03]} 36. Kf3 {[%emt 0:00:05]} ({Much weaker is} 36. bxa4 Ra8 37. g4 Rxa4 $17) 36... Rh8 {[%emt 0:03:17]} 37. Rh1 {[%emt 0:00:04]} Ra8 {[%emt 0:00:09]} 38. g4 {[%emt 0:00:32]} axb3 {[%emt 0:01:54]} 39. axb3 {[%emt 0:00:00]} Ra3 {[%emt 0:00:59] Black is more active.} 40. gxf5+ {[%emt 0:00:00]} exf5 {[%emt 0:00:00]} 41. Rb1 {[%emt 0:07:25]} Rh5 {[%emt 0:06:05]} 42. Rbg1+ {[%emt 0:02:52]} Kf7 {[%emt 0:04:52]} 43. Bf1 {[%emt 0:07:59]} Rxh1 {[%emt 0:02:23]} 44. Rxh1 {[%emt 0:00:04]} Rxb3 {[%emt 0:02:24][%mdl 4096] Endgame Strongly threatening ...Bd4. KRB-KRB} 45. Bd3 {[%emt 0:00:06]} Bg7 {[%emt 0:15:01]} 46. Bxf5 {[%emt 0:04:20]} d4 {[%emt 0:01:12]} 47. Re1 {[%emt 0:00:12]} Rc3 {[%emt 0:01:15]} 48. Be4 {[%emt 0:05:30]} Bf8 {[%emt 0:01:25]} 49. Bxc6 {[%emt 0:04:45]} Bxc5 {[%emt 0:00:02]} 50. Re2 {[%emt 0:03:15]} Kf6 {[%emt 0:01:38]} 51. Be4 {[%emt 0:02:10]} Ke6 {[%emt 0:03:46]} ({But not} 51... dxe3 $6 52. Rc2 $11) 52. Bh7 {[%emt 0:02:14]} Kf7 {[%emt 0:00:10]} ({Reject} 52... Rxe3+ $6 53. Rxe3+ dxe3 54. Bg8+ Kf6 55. Ke2 $11) 53. Be4 {[%emt 0:01:23]} Bb6 {[%emt 0:01:56]} 54. Bd5+ {[%emt 0:04:15]} Kf6 {[%emt 0:00:32]} 55. Ke4 {[%emt 0:01:21]} dxe3 {[%emt 0:00:11]} 56. Kf3 {[%emt 0:00:38]} Bd4 {[%emt 0:00:41]} 57. Be4 {[%emt 0:00:34]} Ra3 {[%emt 0:00:29]} 58. Bd5 $2 {[%emt 0:00:44] Now White is beyond hope.} (58. Bb1 $17 {was worth a try.}) 58... b3 $19 {[%emt 0:00:22][%cal Bb4b3,Bb3b2][%mdl 32] Threatens to win with ...b2.} 59. Be4 $2 {[%emt 0:00:11]} (59. Re1) 59... Ra1 {[%emt 0:01:30]} 60. Rh2 {[%emt 0:00:11]} b2 {[%emt 0:00:25]} 61. Rh6+ {[%emt 0:00:10]} Ke7 {[%emt 0:00:34]} 62. Rh7+ {[%emt 0:00:41]} Kd6 {[%emt 0:00:08]} (62... Kf8 $142 {( -> ...Rf1+)} 63. Rh2 Rf1+ 64. Kg3 b1=Q 65. Bxb1 Rxb1) 63. Rb7 {[%emt 0:01:19] [#]} (63. Rh2 $19) 63... Rf1+ {[%emt 0:00:04] Black mates.} 64. Ke2 {[%emt 0:00:06]} Rf2+ {[%emt 0:00:45]} 65. Kd1 {[%emt 0:00:30]} e2+ {[%emt 0:00:10]} 66. Ke1 {[%emt 0:00:05]} Bc3+ {[%emt 0:00:04] Weighted Error Value: White=0.27 (precise) /Black=0.05 (flawless)} 0-1

[Event "Prague Festival-Challengers 2022"]
[Site "Prague"]
[Date "2022.06.17"]
[Round "9.4"]
[White "Michalik, Peter"]
[Black "Hracek, Zbynek"]
[Result "1/2-1/2"]
[ECO "C11"]
[WhiteElo "2579"]
[BlackElo "2570"]
[Annotator "TA"]
[PlyCount "61"]
[EventDate "2022.06.07"]
[EventType "tourn"]
[EventCountry "CZE"]
[SourceTitle "playchess.com"]
[Source "ChessBase"]
[SourceQuality "1"]
[TimeControl "40/5400+30:1800+30"]

{[%evp 16,61,16,15,20,-10,19,10,9,11,16,0,11,6,8,0,0,0,2,0,0,0,0,0,8,0,0,0,0,0,0,0,0,0,0,0,0,0,0,0,0,-20,-12,-13,-13,-13,0,-12]} 1. e4 {[%emt 0:00:08]} e6 {[%emt 0:00:23]} 2. d4 {[%emt 0:00:09]} d5 {[%emt 0:00:03]} 3. Nc3 {[%emt 0:00:05]} Nf6 {[%emt 0:00:05]} 4. e5 {[%emt 0:00:41]} Nfd7 {[%emt 0:00:04]} 5. f4 {[%emt 0:00:04]} c5 {[%emt 0:00:06]} 6. Nf3 {[%emt 0:00:02]} Nc6 {[%emt 0:00:06]} 7. Be3 {[%emt 0:00:04]} a6 {[%emt 0:00:04]} 8. Qd2 {[%emt 0:00:14]} b5 {[%emt 0:00:07]} 9. a3 {[%emt 0:04:00] The position is equal.} Qa5 {[%emt 0:00:16] is the new trend. C11: French: Classical System: 4 e5 and 4 Bg5 dxe4.} 10. Rd1 {[%emt 0:03:46]} b4 {[%emt 0:02:40]} (10... Rb8 $5 {[%cal Rb5b4]}) 11. axb4 {[%emt 0:00:17]} Qxb4 {[%emt 0:00:11]} 12. b3 {[%emt 0:07:45] [#]} cxd4 $146 {[%emt 0:15:20]} ({Predecessor:} 12... Bb7 13. Be2 Rc8 14. dxc5 Bxc5 15. Bxc5 Nxc5 16. O-O O-O 17. Nd4 Qxd4+ 18. Qxd4 Nxd4 19. Rxd4 Nxb3 20. cxb3 Rxc3 {½-½ (25) Gholami,A (2473)-Malakhatko,V (2536) Baghdad 2018}) 13. Nxd4 {[%emt 0:00:05]} Nxd4 {[%emt 0:00:10]} 14. Bxd4 {[%emt 0:00:17]} Bc5 {[%emt 0:00:14]} 15. Be2 {[%emt 0:04:47]} Bb7 {[%emt 0:06:55]} 16. Bxc5 {[%emt 0:13:07]} Nxc5 {[%emt 0:08:03]} 17. Na4 {[%emt 0:02:09]} Qxd2+ {[%emt 0:00:24]} 18. Kxd2 {[%emt 0:00:03]} Nxa4 {[%emt 0:02:18]} 19. bxa4 {[%emt 0:00:04]} Bc6 {[%emt 0:00:41]} 20. a5 {[%emt 0:05:07]} Bb5 {[%emt 0:01:48]} 21. c4 {[%emt 0:08:16]} Bxc4 {[%emt 0:16:45]} 22. Bxc4 {[%emt 0:00:04]} dxc4 $11 {[%emt 0:00:07][%mdl 4096] Endgame KRR-KRR} 23. Kc3 {[%emt 0:00:03]} O-O {[%emt 0:02:20]} 24. Rd6 {[%emt 0:04:07]} Rfc8 {[%emt 0:02:42]} 25. Rb1 {[%emt 0:04:02]} g6 {[%emt 0:07:02][%cal Bg7g6,Bg6g5][%mdl 32]} 26. Rb4 {[%emt 0:09:14]} Rc5 {[%emt 0:01:18]} 27. Ra4 {[%emt 0:00:03]} g5 {[%emt 0:08:09]} 28. g3 {[%emt 0:03:34]} Kg7 {[%emt 0:04:22]} 29. Kd4 {[%emt 0:00:56]} Rac8 {[%emt 0:00:31] [#] And now ...c3 would win.} 30. Kc3 $1 {[%emt 0:00:07]} Ra8 {[%emt 0:03:44]} 31. Kd4 {[%emt 0:00:05] An interesting draw.  Weighted Error Value: White=0.04 (flawless) /Black=0.03 (flawless)} 1/2-1/2

[Event "Prague Festival-Challengers 2022"]
[Site "Prague"]
[Date "2022.06.17"]
[Round "9.5"]
[White "Abdusattorov, Nodirbek"]
[Black "Pechac, Jergus"]
[Result "1/2-1/2"]
[ECO "C50"]
[WhiteElo "2661"]
[BlackElo "2597"]
[Annotator "TA"]
[PlyCount "106"]
[EventDate "2022.06.07"]
[EventType "tourn"]
[EventCountry "CZE"]
[SourceTitle "playchess.com"]
[Source "ChessBase"]
[SourceQuality "1"]
[TimeControl "40/5400+30:1800+30"]

{[%evp 9,106,10,16,16,22,17,25,17,28,22,24,10,10,15,26,0,0,0,0,-43,-28,-61,-20,-26,-25,-71,-48,-59,-58,-84,-39,-132,-88,-72,-69,-108,-39,-53,-52,-141,-133,-133,-133,-139,-130,-129,-85,-148,-153,-156,-174,-166,-176,-169,-146,-155,-143,-132,-115,-120,-119,-130,-130,-133,-127,-118,-121,-135,-80,-109,-59,-259,-259,-259,-258,-235,-47,-46,-50,-45,-47,-46,-10,-14,-10,-10,-10,-19,0,0,0,0,0,0,0,0,0,0,0]} 1. e4 {[%emt 0:00:10]} e5 {[%emt 0:00:14]} 2. Nf3 {[%emt 0:00:08]} Nc6 {[%emt 0:00:06]} 3. Bc4 {[%emt 0:00:07]} Bc5 {[%emt 0:00:07]} 4. d3 {[%emt 0:00:20]} a6 {[%emt 0:00:07]} 5. a4 {[%emt 0:00:42]} d6 {[%emt 0:00:23]} 6. O-O {[%emt 0:00:45] C50: Hungarian Defence and Giuoco Pianissimo.} Qf6 {[%emt 0:04:25]} 7. c3 {[%emt 0:03:49]} Bg4 {[%emt 0:00:45]} 8. Nbd2 {[%emt 0:11:25] [#] White has an edge.} Nge7 $146 {[%emt 0:00:29]} ({Predecessor:} 8... Nd8 9. b4 Ba7 10. h3 Bh5 11. g4 Bg6 12. g5 Qe7 13. Nb3 Ne6 14. Re1 Bh5 {0-1 (49) Kozhemyako,V (1503)-Kaigorodov,T (1774) Novosibirsk 2010}) 9. b4 {[%emt 0:00:09]} Ba7 {[%emt 0:00:46]} 10. h3 {[%emt 0:03:14]} h5 {[%emt 0:00:10]} 11. Nb3 {[%emt 0:03:45]} Nd8 {[%emt 0:05:16]} 12. d4 {[%emt 0:04:37]} (12. hxg4 hxg4 13. Re1 (13. Bg5 Qg6 $17) 13... Ne6 $15) 12... Ne6 {[%emt 0:00:46][%cal Oe5d4]} 13. Bxe6 {[%emt 0:17:47]} Bxe6 {[%emt 0:03:53]} 14. Be3 {[%emt 0:01:22]} Qg6 {[%emt 0:07:10][%csl LRe4,LRh3]} 15. dxe5 {[%emt 0:10:06] Black must now prevent Bxa7.} Bxe3 {[%emt 0:01:01]} (15... Bxh3 $5 16. Nh4 (16. Bg5 dxe5 17. gxh3 f6 $17) 16... Qxe4 17. exd6 Bxe3 18. dxe7 Ba7 $15) 16. fxe3 {[%emt 0:00:29]} Bxh3 $40 {[%emt 0:01:27][%csl Gh3][%cal Rg6g2][%mdl 128] Black has some attack.} 17. Qc2 {[%emt 0:04:43]} (17. Qd2 $11 {should be considered.}) 17... h4 $17 {[%emt 0:04:32]} 18. exd6 {[%emt 0:00:17]} cxd6 {[%emt 0:00:08]} 19. Nbd4 {[%emt 0:00:22]} Rc8 {[%emt 0:00:48][%cal Oc8c3]} 20. Qf2 {[%emt 0:06:57]} (20. e5 $15 Qxc2 21. Nxc2) 20... Rxc3 {[%emt 0:03:54]} 21. e5 {[%emt 0:03:25]} d5 {[%emt 0:02:18]} 22. Rac1 {[%emt 0:02:33] [#]} Rc8 {[%emt 0:16:25]} (22... Rxc1 $1 $17 23. Rxc1 Bg4) 23. e6 {[%emt 0:03:54]} Bxe6 {[%emt 0:00:49]} 24. Ne5 {[%emt 0:00:18]} (24. Rxc8+ $15 Nxc8 25. Nxe6 fxe6 26. Ne5) 24... Qg3 {[%emt 0:03:13]} 25. Rxc8+ {[%emt 0:05:09]} Nxc8 {[%emt 0:00:06][%cal Be7c8,Bc8d6,Bd6e4][%mdl 32]} 26. Qxg3 {[%emt 0:00:51]} hxg3 {[%emt 0:00:02]} 27. Rf3 {[%emt 0:01:03]} O-O {[%emt 0:07:47]} 28. Nd3 {[%emt 0:01:44]} (28. Nxe6 $142 fxe6 29. Nd7 Rxf3 30. gxf3) 28... Nd6 {[%emt 0:00:41]} 29. Rxg3 {[%emt 0:01:17]} Ne4 {[%emt 0:03:18]} 30. Rf3 {[%emt 0:00:02]} Rc8 {[%emt 0:00:07]} 31. Rf1 {[%emt 0:02:08]} Rc4 {[%emt 0:08:56]} 32. a5 {[%emt 0:01:18] [#]} g5 $1 {[%emt 0:03:42]} 33. Rb1 {[%emt 0:00:37]} Rc3 {[%emt 0:03:25]} 34. Nc5 {[%emt 0:00:07]} Bc8 {[%emt 0:03:57]} 35. Nxe4 {[%emt 0:00:51]} dxe4 {[%emt 0:00:03][%mdl 4096] Endgame KRB-KRN} 36. Kf2 {[%emt 0:01:20]} Kg7 {[%emt 0:01:37]} 37. b5 {[%emt 0:01:17]} Rc5 {[%emt 0:02:33]} 38. Rb4 {[%emt 0:01:26]} f5 {[%emt 0:02:05]} (38... Bd7 $142 39. bxa6 bxa6) 39. g4 {[%emt 0:03:14]} f4 {[%emt 0:00:30]} ({Better is} 39... fxg4 $17 40. bxa6 bxa6 41. Rb7+ Kh6) 40. bxa6 $2 {[%emt 0:00:00]} (40. exf4 $1 $15 gxf4 41. bxa6 bxa6 42. Ne2) 40... bxa6 $19 {[%emt 0:00:00]} 41. exf4 {[%emt 0:13:35]} gxf4 {[%emt 0:01:04]} 42. Ne2 {[%emt 0:01:33]} f3 $2 {[%emt 0:04:32]} ({Weaker is} 42... Rxa5 43. Rxe4 Bxg4 44. Rxf4 $17) ({And not} 42... Bxg4 43. Nxf4 Rxa5 44. Rxe4 $17) ({Black should try} 42... Rc2 $19 {aiming for ...f3.} 43. Rxe4 f3 44. Kxf3 Bb7) 43. Ng3 $15 {[%emt 0:04:39]} Rxa5 {[%emt 0:08:17]} 44. Rxe4 {[%emt 0:01:07]} Ra2+ {[%emt 0:00:23]} 45. Ke3 {[%emt 0:00:28]} Ra3+ {[%emt 0:00:08]} 46. Kf2 {[%emt 0:00:49] The position is equal.} a5 {[%emt 0:05:24]} 47. Rc4 $1 {[%emt 0:00:31]} Be6 {[%emt 0:01:55]} 48. Nf5+ {[%emt 0:02:09]} Kf6 {[%emt 0:02:08]} 49. Rc5 {[%emt 0:00:10]} a4 {[%emt 0:01:43]} 50. g5+ {[%emt 0:00:25]} Kf7 {[%emt 0:05:44]} 51. Ra5 {[%emt 0:01:00]} Bxf5 {[%emt 0:03:55]} 52. Rxf5+ {[%emt 0:00:51]} Kg7 {[%emt 0:00:02]} 53. Rf6 {[%emt 0:01:43]} Rb3 {[%emt 0:02:42] Black had all chances to win.  Weighted Error Value: White=0.21 (precise) /Black=0.18 (very precise)} 1/2-1/2